Cogmind - Beta 13 @@@ ROGUE MODE // 2024.04.20 @ 23:49:20 Player: Cwaftwer Result: Destroyed by H-66 Slayer with Gauss Rifle Performance ------------- Evolutions (4) 2000 Regions Visited (11) 2200 Robots Destroyed (83) 415 Value Destroyed (2709) 2709 Prototype IDs (4) 80 Alien Tech Used (0) 0 Bonus (1497) 1497 TOTAL SCORE: 8901 Bonus ------- High Alert Combat Kills 262 Follower Combat Kills 1085 Entered Garrisons 200 Friendly Fire -50 Cogmind --------- Core Integrity 0/850 Matter 82/300 Energy 93/100 System Corruption 8% Temperature Cool (0) Movement Core (100) Ox1 Location -6/Factory Parts ------- > --- POWER (3) -------- (None) > --- PROPULSION (4) --- (None) > --- UTILITY (4) ------ Power Amplifier Enhanced Optical Array Core Analyzer Improved Hacking Suite > --- WEAPON (4) ------- Lightning Gun > --- INVENTORY (5) ---- Hardened Heavy Armor Plating Medium Reflective Plating Medium Reflective Plating Peak State ------------ > --- POWER ------------ Reinforced Ion Engine Deuterium Engine Antimatter Reactor > --- PROPULSION ------- Light Treads Light Treads Heavy Treads > --- UTILITY ---------- Advanced Heat Sink Huge Storage Unit Improved Phase Shifter Force Field > --- WEAPON ----------- Plasma Cannon Assault Cannon Assault Cannon Magnetic Acceleration Cannon > --- INVENTORY -------- Deuterium Engine Improved Deuterium Engine Light Treads Light Treads Improved Heat Sink High-capacity Storage Unit Compact Matter Pod Heavy Armor Plating Hardened Light Armor Plating Hardened Light Armor Plating Damper Plating Nova Cannon Hypervelocity Gauss Rifle Hypervelocity Gauss Rifle Assault Cannon Assault Cannon Assault Cannon Assault Cannon Rocket Launcher Heavy Mace [Rating: 67] Favorites ----------- Power Reinforced Ion Engine Engine Reinforced Ion Engine Power Core Light Nuclear Core Reactor Antimatter Reactor Propulsion Light Treads Treads Light Treads Flight Unit Q-thruster Utility Advanced Heat Sink Device Advanced Heat Sink Storage High-capacity Storage Unit Processor Enhanced Optical Array Hackware Improved Hacking Suite Protection Light Armor Plating Weapon Assault Cannon Energy Gun Lightning Gun Energy Cannon Advanced Beam Cannon Ballistic Gun Heavy Assault Rifle Ballistic Cannon Assault Cannon Impact Weapon Heavy Mace Build | -11 -10 -9 -9 -8 -7 -7 -7 -7 -6 -6 -6 ------- Run | Yrd Mat Mat Min Mat Fac Was Fac Gar Fac Was Fac Slots Evolved 8 | . . 2 . 2 2 . . . 2 . . Power 2 | . . 2 . . . . . . . . . Propulsion 2 | . . . . 1 . . . . 1 . . Utility 2 | . . . . 1 1 . . . . . . Weapon 2 | . . . . . 1 . . . 1 . . Parts Attached 111 | 7 5 11 7 32 4 2 1 4 14 2 22 Power 18 | 2 . 3 2 7 . 1 . . 2 . 1 Engine 15 | 2 . 3 2 6 . . . . 2 . . Core 2 | . . . . 1 . . . . . . 1 Reactor 1 | . . . . . . 1 . . . . . Propulsion 26 | 2 . 3 2 6 1 1 . . 3 . 8 Treads 19 | 2 . 3 2 6 1 1 . . 3 . 1 Leg . | . . . . . . . . . . . . Wheel . | . . . . . . . . . . . . Hover . | . . . . . . . . . . . . Flight 7 | . . . . . . . . . . . 7 Utility 36 | 1 3 2 1 9 2 . 1 2 5 1 9 Device 13 | . 1 . . 5 1 . . 1 2 . 3 Storage 6 | 1 1 1 . . 1 . 1 . . . 1 Processor 4 | . 1 . . 1 . . . . . . 2 Hackware 3 | . . . . . . . . . 2 . 1 Protection 10 | . . 1 1 3 . . . 1 1 1 2 Artifact . | . . . . . . . . . . . . Weapon 31 | 2 2 3 2 10 1 . . 2 4 1 4 Energy Gun 4 | . . . . 1 . . . . . . 3 Energy Cannon 5 | . 2 1 1 . . . . . 1 . . Ballistic Gun 7 | 2 . . . 4 . . . . . . 1 Ballistic Cannon 12 | . . 1 1 5 1 . . 1 2 1 . Launcher . | . . . . . . . . . . . . Special Weapon . | . . . . . . . . . . . . Impact Weapon 3 | . . 1 . . . . . 1 1 . . Slashing Weapon . | . . . . . . . . . . . . Piercing Weapon . | . . . . . . . . . . . . Special Melee Weapon . | . . . . . . . . . . . . Unidentified Prototypes 2 | . . 1 . 1 . . . . . . . Corrupted Parts 1 | . . . . . . . . . . . 1 System Corruption 2 | . . . . . . . . . . . 2 Parts Lost 32 | . . 2 2 6 . . . . 4 9 9 Power 6 | . . . 1 1 . . . . 1 2 1 Propulsion 12 | . . 2 1 2 . . . . 2 2 3 Utility 8 | . . . . 1 . . . . 1 3 3 Weapon 6 | . . . . 2 . . . . . 2 2 Highest Loss Streak 8 | . . 1 1 2 . . . . 3 8 6 To Critical Strikes . | . . . . . . . . . . . . Average Slot Usage (%) 84 | . 87 82 96 93 76 97 92 91 92 43 26 Engine 17 | . 14 19 29 24 23 20 15 15 15 10 . Reactor 2 | . . . . . . 1 7 7 3 . . Treads 18 | . 28 19 22 23 15 20 15 15 19 9 1 Device 9 | . 2 . . 8 7 15 15 14 14 4 4 Storage 7 | . 10 11 11 9 6 7 7 7 6 3 1 Protection 6 | . . 10 11 8 7 7 7 7 3 1 1 Energy Cannon 2 | . 1 12 11 . . . . . 3 . . Ballistic Gun 2 | . 26 . . 6 . . . . . . . Ballistic Cannon 13 | . . 8 10 9 15 23 23 21 21 7 . Naked Turns 58 | . . . . . . . . . . 58 . Heaviest Build 150 | 14 33 67 67 79 82 93 133 134 150 137 54 Greatest Support 110 | 40 40 40 40 60 60 90 90 90 110 110 28 Greatest Overweight (x) 33 | . . 1 1 3 1 1 1 1 1 33 13 Average Overweight (x) . | . . . 1 1 . . 1 1 1 . . Largest Inventory Capacity 25 | 8 15 20 20 20 20 20 25 25 25 25 20 Average Capacity 20 | 5 12 17 20 20 18 20 23 25 25 15 9 Most Carried 25 | 2 8 16 17 20 19 20 24 25 25 22 6 Average Carried 16 | . 3 11 13 16 14 17 22 24 23 11 3 Final Capacity 25 | 8 15 20 20 20 20 20 25 25 25 5 5 Final Carried 25 | 1 6 16 13 17 16 20 24 25 22 1 4 Class Distribution -------------------- 38% | Scavenger-Tank 38% | Scavenger-Mutant 23% | Mutant Dominant Class ---------------- Mutant | -10/Materials Mutant | -9/Materials Scavenger-Mutant | -9/Mines Scavenger-Mutant | -8/Materials Scavenger-Mutant | -7/Factory Scavenger-Tank | -7/Waste Scavenger-Tank | -7/Factory Scavenger-Tank | -7/Garrison Scavenger-Tank | -6/Factory Mutant | -6/Waste Mutant | -6/Factory Resources | -11 -10 -9 -9 -8 -7 -7 -7 -7 -6 -6 -6 ----------- Run | Yrd Mat Mat Min Mat Fac Was Fac Gar Fac Was Fac Matter Collected 2883 | 258 237 339 209 1006 80 130 10 130 467 . 17 Remotely . | . . . . . . . . . . . . Salvage Created 2745 | 50 237 791 209 965 41 . . . 405 . 47 Parts 173 | 2 18 46 14 67 1 . . . 21 . 4 Haulers Intercepted 4 | . . 2 . 2 . . . . . . . Recyclers Shooed 2 | . . 1 . . . . . . . . 1 Parts Field Recycled . | . . . . . . . . . . . . Retrieved Matter . | . . . . . . . . . . . . Parts Self-Destructed . | . . . . . . . . . . . . Prevented . | . . . . . . . . . . . . Kills | -11 -10 -9 -9 -8 -7 -7 -7 -7 -6 -6 -6 ------- Run | Yrd Mat Mat Min Mat Fac Was Fac Gar Fac Was Fac Combat Hostiles Destroyed 66 | . 7 13 7 26 1 . . . 10 . 2 Melee 4 | . . 3 . . . . . . 1 . . Guns 16 | . 7 . . 7 . . . . . . 2 Cannons 45 | . . 10 7 19 1 . . . 8 . . Classes Destroyed 12 | 1 3 5 1 . . . . . 2 . . Worker 3 | . . 1 1 . . . . . 1 . . Builder 2 | . 1 1 . . . . . . . . . Hauler 4 | . . 2 . 2 . . . . . . . Recycler 4 | 1 . 3 . . . . . . . . . Mechanic 1 | . . 1 . . . . . . . . . Watcher 3 | . . 1 . 2 . . . . . . . Swarmer 25 | . 3 6 4 7 . . . . 3 . 2 Grunt 29 | . 4 3 2 16 . . . . 4 . . Duelist 2 | . . . 1 . . . . . 1 . . Sentry 8 | . . 4 . 3 1 . . . . . . Programmer 1 | . . . . . . . . . 1 . . Infiltrator 1 | . . . . . . . . . 1 . . Best Kill Streak 8 | 1 7 5 5 8 1 . . . 4 . 1 Combat Bots Only 7 | . 6 3 4 7 1 . . . 4 . 1 Max Kills in Single Turn 2 | 1 2 2 1 1 1 . . . 2 . 1 Gunslinging . | . . . . . . . . . . . . Exploded . | . . . . . . . . . . . . Melee 1 | . . 1 . . . . . . 1 . . Uniques/NPCs Destroyed . | . . . . . . . . . . . . Combat | -11 -10 -9 -9 -8 -7 -7 -7 -7 -6 -6 -6 -------- Run | Yrd Mat Mat Min Mat Fac Was Fac Gar Fac Was Fac Hostile Shots Fired 593 | . 40 104 47 168 9 . . 9 75 13 128 Missed 150 | . 12 26 6 42 4 . . 6 15 . 39 Damage Taken 6698 | . 351 795 511 1798 38 . . 66 1317 572 1250 Core 1451 | . 45 165 94 282 . . . . 103 219 543 Absorbed by Shields 458 | . . . . . . . . . 231 154 73 Redirected to Shielding 100 | . . . . . . . . . . . 100 Regen/Repaired (Parts) 797 | . . 49 . 371 371 6 . . . . . Core Remaining (%) 73 | 100 82 . 35 48 . . . 100 . . . Volleys Fired 230 | 3 24 42 25 97 2 . . 6 18 2 11 Largest 4 | 1 2 2 2 2 2 . . 3 4 3 2 Hottest 221 | 20 40 136 107 107 88 . . 132 221 141 110 Shots Fired 467 | 3 48 83 40 189 4 . . 18 63 4 15 Gun 142 | 3 48 . . 76 . . . . . . 15 Cannon 325 | . . 83 40 113 4 . . 18 63 4 . Launcher . | . . . . . . . . . . . . Special . | . . . . . . . . . . . . Kinetic 352 | 3 48 32 15 171 4 . . 18 50 4 7 Thermal 100 | . . 51 25 11 . . . . 13 . . Explosive . | . . . . . . . . . . . . Electromagnetic 15 | . . . . 7 . . . . . . 8 Robot Hit Streak 10 | 1 4 8 6 10 7 . . 2 6 3 6 Robot Miss Streak 9 | 1 4 5 9 3 . . . 3 5 1 4 Penetration Max . | . . . . . . . . . . . . Secondary Targets 1 | . 1 . . . . . . . . . . Max Gunslinging Chain 1 | . 1 . . . . . . . . . . Shots Hit Robots 263 | 2 28 45 17 128 4 . . 2 26 2 9 Core Hits 116 | 2 15 21 9 49 2 . . . 14 . 4 Critical Kills 2 | . . . . 1 . . . . 1 . . Critical Parts Destroyed 1 | . . . . . . . . . 1 . . Critical Strikes 12 | . . 1 . 6 1 . . 1 3 . . Destroy 1 | . . . . 1 . . . . . . . Blast 9 | . . 1 . 5 1 . . 1 1 . . Smash 2 | . . . . . . . . . 2 . . Melee Attacks 59 | . . 9 . . . . . 24 2 24 . Impact 59 | . . 9 . . . . . 24 2 24 . Slashing . | . . . . . . . . . . . . Piercing . | . . . . . . . . . . . . Sneak Attacks . | . . . . . . . . . . . . Combat Hostiles . | . . . . . . . . . . . . Follow-up Attacks . | . . . . . . . . . . . . Damage Inflicted 5670 | 25 393 1074 392 2603 95 . . 72 782 49 185 Guns 1405 | 25 393 . . 841 . . . . . . 146 Cannons 3954 | . . 891 392 1762 95 . . 72 693 49 . Explosions . | . . . . . . . . . . . . Melee 272 | . . 183 . . . . . . 89 . . Ramming 39 | . . . . . . . . . . . 39 Kinetic 4050 | 25 393 359 124 2346 95 . . 72 508 49 79 Thermal 1149 | . . 532 268 164 . . . . 185 . . Explosive . | . . . . . . . . . . . . Electromagnetic 160 | . . . . 93 . . . . . . 67 Impact 272 | . . 183 . . . . . . 89 . . Slashing . | . . . . . . . . . . . . Piercing . | . . . . . . . . . . . . Highest Corruption 8 | . . . . . . . . . . 5 8 Average Corruption 5 | . . . . . . . . . . 5 6 Corruption Purged . | . . . . . . . . . . . . Corruption Blocked . | . . . . . . . . . . . . Effects 23 | . . . . . . . . . . 7 16 Message Errors 6 | . . . . . . . . . . 2 4 Matter Fused 5 | . . . . . . . . . . 2 3 Heat Flow Errors 3 | . . . . . . . . . . . 3 Energy Discharges 3 | . . . . . . . . . . 1 2 Data Loss (minor) 4 | . . . . . . . . . . 2 2 Data Loss (major) 1 | . . . . . . . . . . . 1 Alerts 1 | . . . . . . . . . . . 1 Overload Shots . | . . . . . . . . . . . . Overflow Damage 164 | . . 93 . 26 . . . . 45 . . Projectiles 61 | . . 21 . 26 . . . . 14 . . Explosions . | . . . . . . . . . . . . Melee 103 | . . 72 . . . . . . 31 . . Knockbacks 40 | . . 5 1 21 . . . 2 11 . . Impact 1 | . . 1 . . . . . . . . . Kinetic 37 | . . 3 1 21 . . . 2 10 . . Secondary 2 | . . 1 . . . . . . 1 . . Self-Inflicted Damage 8 | . . . . . . . . . . . 8 Shots . | . . . . . . . . . . . . Rammed 21 | . . . . . . . . . . . 21 Targets Rammed 21 | . . . . . . . . . . . 21 Kicked . | . . . . . . . . . . . . Crushed . | . . . . . . . . . . . . Highest Temperature 615 | . 8 526 615 251 11 . . 127 488 36 220 Average Temperature 151 | . 2 152 276 65 9 . . 43 211 18 94 Received Heat Transfer 1789 | . 159 69 102 1053 12 . . 12 370 . 12 Effects 39 | . . 8 18 . . . . . 13 . . Shutdowns 12 | . . 2 4 . . . . . 6 . . Energy Bleed 6 | . . 2 3 . . . . . 1 . . Interference 7 | . . 2 1 . . . . . 4 . . Matter Decay 3 | . . 1 2 . . . . . . . . Short Circuit 2 | . . . 2 . . . . . . . . Damage (minor) 2 | . . . . . . . . . 2 . . Damage (major) 5 | . . . 5 . . . . . . . . Damage (core) 2 | . . 1 1 . . . . . . . . Siege Activations . | . . . . . . . . . . . . Robots Corrupted . | . . . . . . . . . . . . Combat Hostiles . | . . . . . . . . . . . . Parts Fried 4 | . . 3 . . . . . . . . 1 Impact Corruptions 6 | . . 5 . . . . . . 1 . . Robots Melted . | . . . . . . . . . . . . Combat Hostiles . | . . . . . . . . . . . . Parts Melted 3 | . . 1 1 1 . . . . . . . Heat Transferred 2089 | . . 962 481 296 . . . . 350 . . Parts Sabotaged . | . . . . . . . . . . . . Parts Stolen . | . . . . . . . . . . . . Parts Stripped . | . . . . . . . . . . . . Power Chain Reactions . | . . . . . . . . . . . . Alert | -11 -10 -9 -9 -8 -7 -7 -7 -7 -6 -6 -6 ------- Run | Yrd Mat Mat Min Mat Fac Was Fac Gar Fac Was Fac Peak Influence 1103 | 5 214 404 332 415 218 76 93 1103 1036 343 268 Initial 578 | . 3 90 157 51 188 76 53 65 578 341 201 Average 371 | 3 86 238 258 183 198 76 83 644 771 301 169 Maximum Alert Level 4 | . 1 2 1 2 1 . . 4 3 1 1 Low Security (%) 40 | 100 77 32 26 68 64 100 100 23 . . 46 Level 1 25 | . 22 61 73 17 35 . . 6 . 100 53 Level 2 16 | . . 6 . 13 . . . 24 49 . . Level 3 11 | . . . . . . . . 18 50 . . Level 4 5 | . . . . . . . . 26 . . . Level 5 . | . . . . . . . . . . . . High Security . | . . . . . . . . . . . . Max Security . | . . . . . . . . . . . . Squads Dispatched 17 | . 3 . 1 5 . . . . 5 . 3 Investigation 7 | . 1 . 1 3 . . . . . . 2 Extermination 1 | . . . . . . . . . 1 . . Reinforcement 7 | . 2 . . 2 . . . . 2 . 1 Assault 2 | . . . . . . . . . 2 . . Garrison . | . . . . . . . . . . . . Intercept . | . . . . . . . . . . . . Searches Triggered . | . . . . . . . . . . . . Construction Impeded 2 | . . . . . . . . . 2 . . Haulers Reinforced . | . . . . . . . . . . . . Active Scanning Responses . | . . . . . . . . . . . . Cargo Convoy Interrupts . | . . . . . . . . . . . . Stealth | -11 -10 -9 -9 -8 -7 -7 -7 -7 -6 -6 -6 --------- Run | Yrd Mat Mat Min Mat Fac Was Fac Gar Fac Was Fac Distress Signals 10 | . . 3 1 3 1 . . . 2 . . Communications Jammed . | . . . . . . . . . . . . Distress Signals . | . . . . . . . . . . . . Times Spotted 142 | . 9 21 8 48 2 . . 10 22 9 13 Peak Tracking Total 7 | . 4 5 4 7 2 . . 3 4 5 6 Tactical Retreats 13 | . . 1 1 5 . . . . . 3 3 Traps | -11 -10 -9 -9 -8 -7 -7 -7 -7 -6 -6 -6 ------- Run | Yrd Mat Mat Min Mat Fac Was Fac Gar Fac Was Fac Traps Triggered 13 | . 1 . . 3 1 . . 3 4 . 1 Indirectly . | . . . . . . . . . . . . Trap Hack Attempts . | . . . . . . . . . . . . Triggered . | . . . . . . . . . . . . Disarmed . | . . . . . . . . . . . . Reprogrammed . | . . . . . . . . . . . . Reused . | . . . . . . . . . . . . Traps Extracted . | . . . . . . . . . . . . Installed . | . . . . . . . . . . . . Triggered . | . . . . . . . . . . . . Machines | -11 -10 -9 -9 -8 -7 -7 -7 -7 -6 -6 -6 ---------- Run | Yrd Mat Mat Min Mat Fac Was Fac Gar Fac Was Fac Machines Disabled 16 | . 1 2 . 2 . . . 4 7 . . Max in Single Turn 1 | . 1 1 . 1 . . . 1 1 . . Phase Generator 1 | . . . . . . . . 1 . . . Machines Repaired . | . . . . . . . . . . . . Machines Dismantled . | . . . . . . . . . . . . Machines Sabotaged . | . . . . . . . . . . . . Overloaded Fab Kills . | . . . . . . . . . . . . Hacking | -11 -10 -9 -9 -8 -7 -7 -7 -7 -6 -6 -6 --------- Run | Yrd Mat Mat Min Mat Fac Was Fac Gar Fac Was Fac Machines Accessed 22 | . 3 4 1 4 1 . 1 2 3 . 3 Terminals 10 | . 3 2 . 1 . . . 2 1 . 1 Fabricators 1 | . . . . . . . . . 1 . . Repair Stations 4 | . . 1 . 1 1 . . . 1 . . Recycling Units 3 | . . 1 . 1 . . . . . . 1 Scanalyzers 2 | . . . . 1 . . . . . . 1 Garrison Access 1 | . . . . . . . 1 . . . . Total Hacks 76 | . 12 15 1 21 3 . 2 5 8 . 9 Successful 38 | . 5 9 1 13 2 . 1 . 3 . 4 Failed 38 | . 7 6 . 8 1 . 1 5 5 . 5 Catastrophic 4 | . 1 . . . . . . 2 1 . . Database Lockouts . | . . . . . . . . . . . . Manual . | . . . . . . . . . . . . Terminals 42 | . 12 9 . 7 . . . 5 5 . 4 Fabricators 2 | . . . . . . . . . 2 . . Repair Stations 14 | . . 3 . 7 3 . . . 1 . . Recycling Units 11 | . . 3 . 5 . . . . . . 3 Scanalyzers 4 | . . . . 2 . . . . . . 2 Garrison Access 2 | . . . . . . . 2 . . . . Terminal Hacks 20 | . 5 5 1 4 . . . . 2 . 3 Record 5 | . . . . 1 . . . . 1 . 3 Prototype ID Bank 2 | . 2 . . . . . . . . . . Open Door 1 | . . . 1 . . . . . . . . Branch Access Points 2 | . . 1 . . . . . . 1 . . Terminal Index 1 | . 1 . . . . . . . . . . Alert Level 2 | . 1 . . 1 . . . . . . . Dispatch Records 2 | . . 1 . 1 . . . . . . . Transport Status 1 | . . . . 1 . . . . . . . Hauler Manifests 1 | . 1 . . . . . . . . . . Registered Components 1 | . . 1 . . . . . . . . . Zone Layout 2 | . . 2 . . . . . . . . . Fabricator Hacks 1 | . . . . . . . . . 1 . . Build 1 | . . . . . . . . . 1 . . Repair Station Hacks 10 | . . 2 . 6 2 . . . . . . Scan Component 5 | . . 1 . 3 1 . . . . . . Repair 5 | . . 1 . 3 1 . . . . . . Recycling Unit Hacks 5 | . . 2 . 3 . . . . . . . Process 1 | . . . . 1 . . . . . . . Report Inventory 2 | . . 1 . 1 . . . . . . . Retrieve Matter 1 | . . . . 1 . . . . . . . Retrieve Components 1 | . . 1 . . . . . . . . . Scanalyzer 1 | . . . . . . . . . . . 1 Insert Component 1 | . . . . . . . . . . . 1 Garrison Access Hacks 1 | . . . . . . . 1 . . . . Unlock Access 1 | . . . . . . . 1 . . . . Unauthorized Hacks . | . . . . . . . . . . . . Terminals . | . . . . . . . . . . . . Fabricators . | . . . . . . . . . . . . Repair Stations . | . . . . . . . . . . . . Recycling Units . | . . . . . . . . . . . . Scanalyzers . | . . . . . . . . . . . . Garrison Access . | . . . . . . . . . . . . Data Cores Recovered . | . . . . . . . . . . . . Used . | . . . . . . . . . . . . Hacking Detections 21 | . 3 4 . 4 1 . 1 2 3 . 3 Full Trace Events 3 | . . . . . . . . 1 . . 2 Feedback Events . | . . . . . . . . . . . . Feedback Blocked . | . . . . . . . . . . . . Robot Schematics Acquired . | . . . . . . . . . . . . Robots Built . | . . . . . . . . . . . . Authchips . | . . . . . . . . . . . . Time . | . . . . . . . . . . . . Total Robot Build Rating . | . . . . . . . . . . . . Part Schematics Acquired . | . . . . . . . . . . . . Parts Built 1 | . . . . . . . . . 1 . . Authchips . | . . . . . . . . . . . . Time 42 | . . . . . . . . . 42 . . Total Part Build Rating 8 | . . . . . . . . . 8 . . Parts Repaired 5 | . . 1 . 3 1 . . . . . . Time 152 | . . 26 . 100 26 . . . . . . Parts Recycled . | . . . . . . . . . . . . Recycled Matter 177 | . . . . 177 . . . . . . . Retrieved Matter 177 | . . . . 177 . . . . . . . Retrieved Components 8 | . . 8 . . . . . . . . . Parts Scanalyzed 1 | . . . . . . . . . . . 1 Part Schematics Acquired . | . . . . . . . . . . . . Parts Damaged . | . . . . . . . . . . . . Bothacking | -11 -10 -9 -9 -8 -7 -7 -7 -7 -6 -6 -6 ------------ Run | Yrd Mat Mat Min Mat Fac Was Fac Gar Fac Was Fac Used RIF Installer . | . . . . . . . . . . . . Robots Hacked . | . . . . . . . . . . . . Non-combat . | . . . . . . . . . . . . Combat . | . . . . . . . . . . . . Robot Hacks Applied . | . . . . . . . . . . . . Relay Couplers Released . | . . . . . . . . . . . . Fabnet Peak Effective % . | . . . . . . . . . . . . Robots Rewired . | . . . . . . . . . . . . Allies Hacked . | . . . . . . . . . . . . Hacks Repelled . | . . . . . . . . . . . . Allies | -11 -10 -9 -9 -8 -7 -7 -7 -7 -6 -6 -6 -------- Run | Yrd Mat Mat Min Mat Fac Was Fac Gar Fac Was Fac Total Allies 22 | . . . . . . 20 . 2 . . . Largest Group 20 | . . . . . . 20 20 19 10 . . Highest-Rated Group 495 | . . . . . . 495 495 481 380 . . Highest-Rated Ally 80 | . . . . . . 35 35 80 80 . . Total Orders . | . . . . . . . . . . . . Ally Attacks 215 | . . . . . . . 10 124 81 . . Total Damage 5929 | . . . . . . . 129 3260 2540 . . Kills 40 | . . . . . . . 1 23 16 . . Allies Corrupted 2 | . . . . . . . . 1 1 . . Allies Melted . | . . . . . . . . . . . . Intel | -11 -10 -9 -9 -8 -7 -7 -7 -7 -6 -6 -6 ------- Run | Yrd Mat Mat Min Mat Fac Was Fac Gar Fac Was Fac Robot Analysis Total . | . . . . . . . . . . . . Derelict Logs Recovered 1 | . . . 1 . . . . . . . . Drone Launches . | . . . . . . . . . . . . Drone Recoveries . | . . . . . . . . . . . . Exploration | -11 -10 -9 -9 -8 -7 -7 -7 -7 -6 -6 -6 ------------- Run | Yrd Mat Mat Min Mat Fac Was Fac Gar Fac Was Fac Turns Passed 8499 | 117 366 748 517 1968 280 283 231 1635 1416 365 573 Spaces Moved 3222 | 68 164 247 120 523 100 115 94 640 527 135 489 Core 256 | 12 . . . . . . . . . 91 153 Treads 2677 | 56 164 247 120 523 100 115 94 640 527 44 47 Legs . | . . . . . . . . . . . . Wheels . | . . . . . . . . . . . . Hover . | . . . . . . . . . . . . Flight 289 | . . . . . . . . . . . 289 Fastest Speed 34 | 50 160 160 240 240 160 160 240 240 240 50 34 Average Speed 207 | 140 160 207 240 269 238 239 240 240 240 141 80 Slowest Speed 1700 | 160 160 240 240 400 240 240 240 240 240 1700 700 Overloaded Moves . | . . . . . . . . . . . . Propulsion Burnouts . | . . . . . . . . . . . . Robots Hopped 1 | . . . . . . . . . . . 1 Cave-ins Triggered 1 | . . . . . . . . . . 1 . Exploration Rate (%) 33 | 4 32 25 19 49 3 70 4 76 24 76 14 Regions Visited 11 Branch Regions 1 Pre-discovered Areas 1 | . . . 1 . . . . . . . . Known Exits Taken 2 | . . 1 . . . . 1 . . . . Unknown Exits Taken 4 | 1 1 . 1 1 . . . . . . . Scrap Searched 1 | . . . 1 . . . . . . . . Spaces Dug 23 | . . . . . . . . . . 23 . Terrain Destroyed 50 | . . 3 . 14 . . . . 10 23 . Melee 22 | . . . . . . . . . . 22 . Projectile 28 | . . 3 . 14 . . . . 10 1 . AOE . | . . . . . . . . . . . . Terrain Rammed . | . . . . . . . . . . . . Walls Destroyed . | . . . . . . . . . . . . Machines Disabled . | . . . . . . . . . . . . Actions | -11 -10 -9 -9 -8 -7 -7 -7 -7 -6 -6 -6 --------- Run | Yrd Mat Mat Min Mat Fac Was Fac Gar Fac Was Fac Total 4507 | 88 221 384 312 900 140 126 100 689 638 264 645 Wait 615 | . 15 56 151 184 17 . . . 51 98 43 Move 3208 | 67 163 246 119 522 100 114 93 636 527 134 487 Hop 1 | . . . . . . . . . . . 1 Pick Up 152 | 9 9 18 5 39 16 4 5 5 13 2 27 Fast Attach . | . . . . . . . . . . . . Attach 77 | 7 2 7 6 16 4 1 . 1 9 2 22 Detach 9 | . 1 . . . . 2 . . 1 1 4 Swap 34 | . 3 4 1 16 . 1 1 3 5 . . Drop 71 | 2 4 2 5 26 1 4 1 4 10 1 11 Fire 230 | 3 24 42 25 97 2 . . 6 18 2 11 Melee 59 | . . 9 . . . . . 24 2 24 . Ram 13 | . . . . . . . . . . . 13 Kick . | . . . . . . . . . . . . Crush 8 | . . . . . . . . . . . 8 Escape Stasis 30 | . . . . . . . . 10 2 . 18 Rewire . | . . . . . . . . . . . . Trap . | . . . . . . . . . . . . Miscellaneous . | . . . . . . . . . . . . Route ------- -11/Scrapyard -10/Materials -9/Materials (discovered 2 exits: *Min x2) -9/Mines -8/Materials -7/Factory -7/Waste -7/Factory -7/Garrison (discovered 3 exits: *Fac x3) -6/Factory (discovered 2 exits: Low x2) -6/Waste -6/Factory History --------- Turn | Location | Event 12 | -11/Scrapyard | Discovered new exit (range 16) 118 | -11/Scrapyard | Entered Materials 315 | -10/Materials | Build established: Mutant 434 | -10/Materials | Discovered new exit (range 16) 484 | -10/Materials | Entered another Materials area 484 | -9/Materials | Evolved 2 slots: Power x2 1070 | -9/Materials | Repaired Lgt. Treads 1117 | -9/Materials | Identified exit to Mines 1232 | -9/Materials | Entered Mines 1305 | -9/Mines | Learned location of Storage (-7) 1330 | -9/Mines | Core integrity fell below 50% 1424 | -9/Mines | Assembled infested the area 1429 | -9/Mines | Assisted by a Guerilla fighting off Assembled 1673 | -9/Mines | Build established: Scavenger-Mutant 1685 | -9/Mines | Discovered new exit (range 7) 1706 | -9/Mines | Met a Derelict shopkeep closing up shop 1749 | -9/Mines | Entered Materials 1749 | -8/Materials | Evolved 2 slots: Propulsion x1, Utility x1 3440 | -8/Materials | Core integrity fell below 50% 3469 | -8/Materials | Destroyed 7 combat bots 3567 | -8/Materials | Discovered new exit (range 3) 3635 | -8/Materials | Repaired Broken Lgt. Treads 3675 | -8/Materials | Repaired Assault Cannon 3703 | -8/Materials | Repaired Lgt. Treads 3717 | -8/Materials | Entered Factory 3717 | -7/Factory | Evolved 2 slots: Utility x1, Weapon x1 3907 | -7/Factory | Repaired Hcp. Storage Unit 3997 | -7/Factory | Sucked down chute 3997 | -7/Factory | Entered Waste 3998 | -7/Waste | Joined by Warlord forces that had cleared the area 4212 | -7/Waste | Found Damper Plating 4239 | -7/Waste | Discovered new exit (range 12) 4280 | -7/Waste | Entered Factory 4280 | -7/Factory | Accompanied by 20 allies 4289 | -7/Factory | Build established: Scavenger-Tank 4494 | -7/Factory | Identified exit to Garrison 4511 | -7/Factory | Entered Garrison 4511 | -7/Garrison | Accompanied by 19 allies 4881 | -7/Garrison | Triggered checkpoint 4895 | -7/Garrison | Triggered checkpoint 4901 | -7/Garrison | Triggered checkpoint 4917 | -7/Garrison | Triggered checkpoint 4989 | -7/Garrison | Triggered checkpoint 5123 | -7/Garrison | Discovered new exit (range 12) 5156 | -7/Garrison | Attempted to access garrison exit controls, blocked by remote lockdown 5255 | -7/Garrison | Lost 4 allies 5338 | -7/Garrison | Discovered new exit (range 10) 5360 | -7/Garrison | Attempted to access garrison exit controls, blocked by remote lockdown 5458 | -7/Garrison | Lost 4 allies 5537 | -7/Garrison | Phase Generator disabled 5754 | -7/Garrison | Build established: Scavenger-Mutant 5791 | -7/Garrison | Triggered checkpoint 5883 | -7/Garrison | Found embedded Infiltrators 6086 | -7/Garrison | Build established: Scavenger-Tank 6129 | -7/Garrison | Discovered new exit (range 7) 6146 | -7/Garrison | Entered Factory 6146 | -6/Factory | Accompanied by 10 allies 6146 | -6/Factory | Evolved 2 slots: Propulsion x1, Weapon x1 6901 | -6/Factory | Lost 5 allies 6945 | -6/Factory | Fabricated Nova Cannon (x1) 7029 | -6/Factory | P-60 Hacker assimilated allied 7W-M3H(x) 7196 | -6/Factory | First assault squad dispatched 7412 | -6/Factory | Lost 3 parts (2n1u) 7423 | -6/Factory | Identified exit to Lower Caves 7562 | -6/Factory | Sucked down chute 7562 | -6/Factory | Entered Waste 7579 | -6/Waste | Spotted C-40 Crusher 7580 | -6/Waste | Spotted C-40 Crusher 7618 | -6/Waste | Crushed by Compactor (1 part destroyed, 1 dropped) 7662 | -6/Waste | Spotted C-40 Crusher 7682 | -6/Waste | Spotted C-40 Crusher 7715 | -6/Waste | Crushed by falling debris 7725 | -6/Waste | Spotted C-40 Crusher 7745 | -6/Waste | Crushed by Compactor (1 part destroyed, 2 dropped) 7748 | -6/Waste | Crushed by Compactor (1 part destroyed, 1 dropped) 7755 | -6/Waste | Crushed by Compactor (1 part destroyed, 1 dropped) 7758 | -6/Waste | Crushed by Compactor (1 part destroyed, 1 dropped) 7776 | -6/Waste | Crushed by Compactor (1 part destroyed) 7807 | -6/Waste | Lost 8 parts (2p2n2u2w) 7890 | -6/Waste | Spotted C-40 Crusher 7918 | -6/Waste | Discovered new exit (range 11) 7927 | -6/Waste | Build established: Mutant 7927 | -6/Waste | Entered Factory 8156 | -6/Factory | Core integrity fell below 50% 8211 | -6/Factory | Lost 6 parts (1p1n3u1w) 8267 | -6/Factory | Core integrity fell below 20% 8500 | -6/Factory | Destroyed by H-66 Slayer with Gauss Rifle Last Messages --------------- Slug penetrates Power Conduit. Power Conduit explodes. R-10 Processor destroyed. U-05 Engineer destroyed. U-05 Engineer lays Concrete. Penetrated by Slug. Slug penetrates Wall. U-05 Engineer lays Concrete. Slug penetrates Wall. Connecting with Recycling Unit... ALERT: Suspicious activity at Recycling Unit F004. Dispatching Investigation squad. U-05 Engineer lays Concrete. Lightning Gun destroyed. Slug penetrates Wall. U-05 Engineer lays Concrete. K-01 Serf collects debris. U-05 Engineer lays Concrete. K-01 Serf collects debris. Penetrated by Slug. Map ----- +----------------------------------------------------+ | ????????????????????????# #???????????? | | ????????????????????????# #???????????? | | ????????????????????????# " " #???????????? | | ????????????????????????# " " #???????????? | | ????????????????????????# " " #???????????? | | ????????????????????????# " " #???????????? | | ????????????????????????# " " #???????????? | | ???????????############## " " #???????????? | | ???????????# # R" " % #???????????? | | ???????????# # " " !![ #????????#### | | ???????????# " " # " " ! #????????# | | ???????????# " " # ! [ #????????# | | ???????????# " " # k #????????# | | ???????????# " " # #????????# | | ???????????# " " # #????????# | | ???????????# " " + #????????# | | ???????????# " " ; #????????# | | ???????????# " " ;!! +????????# | | ???????????# "" "" " " ;!% #????????# | | ???????????# ""G"" g ;!!* h #????????# | | ??????+################;; k R u #????????# | | ????? R h #????????# | | ????? u ############# | | ???? k | | ???? g u #### | | ???? A @ | ! #??# | | ?????????#####+############;##########??# | | ?????????????????????# #?????# | | ?????????????????????#"" #?????# | | ?????????????????????#"" #?????# | | ?????????????????????#"" #?????# ## | | ?????????????????????#"Y """ #?????# #? | | ?????????????????????#"" """ #?????# #? | | ?????????????????????#"" """ #?????# #? | | ?????????????????????#"" #?????# #? | | ?????????????????????# """ #?????# #? | | ?????????????????????# """ #?????# ^#? | | ?????????????????????# """ #?????# ^ #? | | ?????????????????????# #?????# #? | | ?????????????????????##############?????# #? | | ????????????????????????????????????????# #? | | ????????????????????????????????????????# #? | | ????????????????????????????????????????# #? | | ????????????????????????????????????????# ^#? | | ????????????????????????????????????????# ^ #? | | ????????????????????????????????????????+ #? | | ????????????????????????????????????????# #? | | ????????????????????????????????????????# #? | | ????????????????????????????????????????# #? | | ????????????????????????????????????????# #? | +----------------------------------------------------+ Best States ------------- Heat Dissipation 63 Energy Generation 37 Energy Capacity 665 Matter Stores 300 Matter Capacity 300 Sight Range 22 Robot Scan Range 15 Terrain Scan Density 10 Power Amplification 20 Armor Coverage 600 Core Shielding 30 Phase Shifting 10 Evasion (%) 63 Core Analysis 6 Recoil Reduction 4 Offensive Hacking 12 Authchip Count 1 Item Schematics ----------------- None Robot Schematics ------------------ None Fabricated ------------ Nova Cannon | x1 | -6/Factory | Preloaded Alien Tech Used ----------------- None Achievements -------------- I Spy Challenges ------------ None Game ------ Seed AutogunMicroSabre Manual? 0 Play Time 01:11:47 Cumulative 23.5 hours Start 2024.04.20 @ 22:37:50 End 2024.04.20 @ 23:49:20 Sessions 1 Manual Loads 0 Difficulty Rogue Special Mode None Game No. 34 Rogue 33 Adventurer 1 Explorer 0 Win Type - Total 0 Types 0/0/0/0/0/0/0/0/0 Lore% 21 Gallery% 29 Achievement% 23 Wizard Run 0 Options --------- Layout 1 ASCII 0 Keyboard 0 Movement Mouse Keybinds 0 Fullscreen 1 Font 24/Smallcaps Map View 50x40 Zoom Use 0% Tactical HUD 0 Map Filters NONE Filters NONE Steam 1 RUN: 4a1a8831-abb8-4b3f-a3f6-8eabfa62485d